fUSD/lending_fUSD_20240213
["ID","MTS","AMOUNT","RATE_DAILY","PERIOD"]
[313946295,1707844317986,-1639.88376316,0.00039,4]
[313946296,1707844317995,-3040.0,0.00039,10]
[313946297,1707844318004,-500.0,0.00039,3]
[313946298,1707844318013,-28605.51880478,0.00039,2]
[313946299,1707844318022,-4611.15060252,0.00039,5]
[313946300,1707844318032,-5000.0,0.00039,7]
[313946301,1707844318042,-620.17919,0.00039,2]
[313946302,1707844318054,-5019.72143498,0.00039,7]
[313946303,1707844318070,-1468.769,0.00039,7]
[313946304,1707844318085,-258.43352103,0.00039,16]
[313946305,1707844318094,-9196.52806664,0.00039,7]
[313946306,1707844318103,-30000.0,0.00039,3]
[313946307,1707844318113,-1021.56814152,0.00039,2]
[313946308,1707844318122,-505.87,0.00039,7]
[313946309,1707844318132,-2034.13516822,0.00039,2]
[313946310,1707844318141,-18459.47956664,0.00039,5]
[313946311,1707844318151,-160.33604099,0.00039,30]
[313946312,1707844318160,-168.07681077,0.00039,40]
[313946313,1707844318170,-300.0,0.00039,40]
[313946314,1707844318182,-203.0,0.00039,2]
[313946315,1707844318198,-1930.0,0.00039,30]
[313946316,1707844318208,-2092.99400322,0.00039,14]
[313946317,1707844318217,-364.840662,0.00039,120]
[313946318,1707844318230,-700.0,0.00039,3]
[313946319,1707844318239,-10000.0,0.00039,11]
[313946320,1707844318248,-287.87952227,0.00039,120]
[313946321,1707844318258,-3000.0,0.00039,37]
[313946322,1707844318268,-166.0,0.00039,28]
[313946323,1707844318278,-500.0,0.00039008,2]
[313946324,1707844318287,-3000.0,0.0003901,37]
[313946325,1707844318297,-5475.95891,0.0003902,37]
[313946326,1707844318307,-5249.06,0.00039044,7]
[313946327,1707844318316,-5249.06,0.00039044,7]
[313946328,1707844318326,-150.0,0.00039059,2]
[313946329,1707844318336,-154.93146774,0.00039078,7]
[313946330,1707844318345,-210.0,0.000391,30]
[313946331,1707844318355,-1000.0,0.000391,15]
[313946332,1707844318364,-447.47,0.000391,7]
[313946333,1707844318374,-2257.17,0.000391,7]
[313946334,1707844318383,-169.96008554,0.00039105,7]
[313946335,1707844318392,-1208.0,0.00039111,30]
[313946336,1707844318401,-4345.91994369,0.00039153,2]
[313946337,1707844318410,-1745.80439972,0.00039166,11]
[313946338,1707844318419,-117646.0,0.00039169,20]
[313946339,1707844318428,-154.0808095,0.00039171,7]
[313946340,1707844318437,-153.16897291,0.00039183,7]
[313946341,1707844318445,-499.77453941,0.00039227,7]
[313946342,1707844318456,-1000.0,0.0003926,2]
[313946343,1707844318465,-500.0,0.00039269,2]
[313946344,1707844318474,-210.0,0.000393,30]
[313946345,1707844318483,-505.87,0.000393,7]
[313946346,1707844318492,-150.94077731,0.0003931,7]
[313946347,1707844318501,-5249.06,0.00039317,7]
[313946348,1707844318510,-5249.06,0.00039317,7]
[313946349,1707844318519,-447.47,0.000394,7]
[313946350,1707844318528,-2257.17,0.000394,7]
[313946351,1707844318538,-1025332.75997999,0.000394,120]
[313946352,1707844318547,-1530.0,0.00039444,7]
[313946353,1707844318556,-150.0,0.00039452,7]
[313946354,1707844318565,-150.0,0.00039452,7]
[313946355,1707844318574,-150.0,0.00039452,7]
[313946356,1707844318583,-150.0,0.00039452,7]
[313946357,1707844318592,-150.0,0.00039452,7]
[313946358,1707844318601,-1232.373682,0.00039452,14]
[313946359,1707844318610,-267.39767407,0.00039492,7]
[313946360,1707844318618,-210.0,0.000395,30]
[313946361,1707844318627,-5000.0,0.000395,4]
[313946362,1707844318637,-3256.16553406,0.000395,2]
[313946363,1707844318646,-1000.0,0.000395,15]
[313946364,1707844318655,-250.0,0.000395,18]
[313946365,1707844318664,-4623.373446,0.000395,9]
[313946366,1707844318673,-166.0,0.000395,29]
[313946367,1707844318682,-153.16897291,0.0003952,7]
[313946368,1707844318691,-500.0,0.0003953,2]
[313946369,1707844318701,-267.39767407,0.00039554,7]
[313946370,1707844318710,-5249.06,0.0003959,7]
[313946371,1707844318719,-5249.06,0.0003959,7]
[313946372,1707844318728,-153.16897291,0.00039592,7]
[313946373,1707844318737,-2853.0,0.00039595,30]
[313946374,1707844318746,-2853.0,0.00039595,60]
[313946375,1707844318755,-505.87,0.000396,7]
[313946376,1707844318765,-153.74319081,0.00039603,2]
[313946377,1707844318774,-182.29171093,0.00039627,7]
[313946378,1707844318783,-3652.56,0.0003963,2]
[313946379,1707844318792,-499.77453941,0.0003964,7]
[313946380,1707844318801,-210.0,0.00039649,26]
[313946381,1707844318810,-154.16943477,0.00039651,7]
[313946382,1707844318819,-499.77453941,0.00039665,7]
[313946383,1707844318828,-499.77453941,0.0003967,7]
[313946384,1707844318837,-150.0,0.00039685,2]
[313946385,1707844318846,-150.94077731,0.00039693,7]
[313946386,1707844318854,-210.0,0.000397,30]
[313946387,1707844318864,-1000.0,0.000397,15]
[313946388,1707844318873,-447.47,0.000397,7]
[313946389,1707844318882,-2257.17,0.000397,7]
[313946390,1707844318890,-312.20067157,0.00039725,10]
[313946391,1707844318899,-666.0,0.00039726,2]
[313946392,1707844318908,-1250.0,0.00039726,2]
[313946393,1707844318917,-163.58956918,0.00039726,30]
[313946394,1707844318926,-171.0,0.0003974,49]
[313946395,1707844318935,-948.11063744,0.00039741,7]
[313946396,1707844318944,-152.38832212,0.0003979,5]
[313946397,1707844318955,-500.0,0.00039791,2]
[313946398,1707844318964,-150.0,0.00039798,2]
[313946399,1707844318973,-10000.0,0.000398,5]
[313946400,1707844318982,-51198.45201267,0.000398,10]
[313946401,1707844318991,-300.0,0.000398,41]
[313946402,1707844319000,-1000.0,0.000398,41]
[313946403,1707844319010,-151.85929632,0.00039811,7]
[313946404,1707844319019,-153.81499,0.00039829,2]
[313946405,1707844319028,-150.94077731,0.00039859,7]
[313946406,1707844319038,-5249.06,0.00039863,7]
[313946407,1707844319047,-5249.06,0.00039863,7]
[313946408,1707844319058,-389.0,0.0003989,2]
[313946409,1707844319067,-334.0,0.0003989,2]
[313946410,1707844319076,-210.0,0.000399,30]
[313946411,1707844319087,-278764.54969679,0.000399,5]
[313946412,1707844319096,-1005.92017875,0.000399,4]
[313946413,1707844319105,-505.87,0.000399,7]
[313946414,1707844319115,-169.96008554,0.00039931,7]
[313946415,1707844319124,-152.48330725,0.0003994,7]
[313946416,1707844319134,-163.58956918,0.00039945,30]
[313946417,1707844319143,-948.11063744,0.00039974,7]
[313946418,1707844319153,-267.39767407,0.00039977,7]
[313946419,1707844319163,-408.34656159,0.00039982,5]
[313946420,1707844319174,-1000.0,0.00039987,4]
[313946421,1707844319183,-285791.7180257,0.0003999,2]
[313946422,1707844319192,-454.68265614,0.0003999,2]
[313946423,1707844319203,-2500.00000001,0.00039998,32]
[313946424,1707844319213,-200000.0,0.00039999,25]
[313946425,1707844319222,-200000.0,0.00039999,20]
[313946426,1707844319231,-500.0,0.00039999,31]
[313946427,1707844319240,-500.0,0.00039999,31]
[313946428,1707844319250,-500.0,0.00039999,31]
[313946429,1707844319259,-635.42453316,0.00039999,31]
[313946430,1707844319268,-500.0,0.00039999,31]
[313946431,1707844319278,-259.41989824,0.00039999,31]
[313946432,1707844319287,-520.09711304,0.00039999,31]
[313946433,1707844319296,-500.0,0.00039999,31]
[313946434,1707844319305,-605.31309591,0.00039999,31]
[313946435,1707844319315,-200.0,0.00039999,31]
[313946436,1707844319324,-500.0,0.00039999,31]
[313946437,1707844319334,-486.61051421,0.00039999,31]
[313946438,1707844319343,-500.0,0.00039999,31]
[313946439,1707844319352,-500.0,0.00039999,31]
[313946440,1707844319362,-640.07095408,0.00039999,31]
[313946441,1707844319371,-300.0,0.00039999,31]
[313946442,1707844319380,-500.0,0.00039999,31]
[313946443,1707844319390,-500.0,0.00039999,31]
[313946444,1707844319399,-500.0,0.00039999,31]
[313946445,1707844319409,-500.0,0.00039999,31]
[313946446,1707844319418,-500.0,0.00039999,31]
[313946447,1707844319427,-500.0,0.00039999,31]
[313946448,1707844319437,-519.31246775,0.00039999,31]
[313946449,1707844319446,-160.16555952,0.00039999,31]
[313946450,1707844319459,-380.22659709,0.00039999,31]
[313946451,1707844319468,-500.0,0.00039999,31]
[313946452,1707844319477,-500.0,0.00039999,31]
[313946453,1707844319487,-365.41962903,0.00039999,31]
[313946454,1707844319496,-500.0,0.00039999,31]
[313946455,1707844319505,-500.0,0.00039999,31]
[313946456,1707844319515,-500.0,0.00039999,31]
[313946457,1707844319524,-500.0,0.00039999,31]
[313946458,1707844319534,-500.0,0.00039999,31]
[313946459,1707844319543,-500.0,0.00039999,31]
[313946460,1707844319552,-500.0,0.00039999,31]
[313946461,1707844319562,-500.0,0.00039999,31]
[313946462,1707844319572,-500.0,0.00039999,31]
[313946463,1707844319581,-500.0,0.00039999,31]
[313946464,1707844319591,-500.0,0.00039999,31]
[313946465,1707844319601,-500.0,0.00039999,31]
[313946466,1707844319611,-500.0,0.00039999,31]
[313946467,1707844319620,-500.0,0.00039999,31]
[313946468,1707844319630,-500.0,0.00039999,31]
[313946469,1707844319639,-500.0,0.00039999,31]
[313946470,1707844319648,-500.0,0.00039999,31]
[313946471,1707844319658,-500.0,0.00039999,31]
[313946472,1707844319667,-500.0,0.00039999,31]
[313946473,1707844319677,-500.0,0.00039999,31]
[313946474,1707844319686,-197.62122432,0.00039999,31]
[313946475,1707844319695,-500.0,0.00039999,31]
[313946476,1707844319705,-500.0,0.00039999,31]
[313946477,1707844319714,-500.0,0.00039999,31]
[313946478,1707844319724,-461.11619009,0.00039999,31]
[313946479,1707844319733,-500.0,0.00039999,31]
[313946480,1707844319742,-500.0,0.00039999,31]
[313946481,1707844319872,-500.0,0.00039999,31]
[313946482,1707844319882,-500.0,0.00039999,31]
[313946483,1707844319891,-500.0,0.00039999,31]
[313946484,1707844319900,-500.0,0.00039999,31]
[313946485,1707844319910,-500.0,0.00039999,31]
[313946486,1707844319919,-500.0,0.00039999,31]
[313946487,1707844319929,-500.0,0.00039999,31]
[313946488,1707844319938,-500.0,0.00039999,31]
[313946489,1707844319948,-522.2262069,0.00039999,31]
[313946490,1707844319959,-438.09694582,0.00039999,31]
[313946491,1707844319968,-212.49908714,0.00039999,31]
[313946492,1707844319978,-222.76446514,0.00039999,31]
[313946493,1707844319987,-500.0,0.00039999,31]
[313946494,1707844319997,-500.0,0.00039999,31]
[313946495,1707844320006,-305.89273978,0.00039999,31]
[313946496,1707844320016,-213.74972614,0.00039999,31]
[313946497,1707844320025,-50000.0,0.0004,10]
[313946498,1707844320034,-22156.02815364,0.0004,4]
[313946499,1707844320045,-1090.50891665,0.0004,4]
[313946500,1707844320055,-2283.00079022,0.0004,4]
[313946501,1707844320065,-155.0,0.0004,4]
[313946502,1707844320074,-9861.90542344,0.0004,4]
[313946503,1707844320086,-4376.99971602,0.0004,4]
[313946504,1707844320095,-213.27677775,0.0004,3]
[313946505,1707844320105,-100119.42179862,0.0004,2]
[313946506,1707844320114,-181.21209367,0.0004,2]
[313946507,1707844320124,-1365.4137189,0.0004,4]
[313946508,1707844320133,-1003.0,0.0004,14]
[313946509,1707844320143,-10100.0,0.0004,10]
[313946510,1707844320152,-2171.03435204,0.0004,7]
[313946511,1707844320164,-9010.31824979,0.0004,2]
[313946512,1707844320173,-1000.0,0.0004,20]
[313946513,1707844320183,-512.2130956,0.0004,2]
[313946514,1707844320193,-9304.8664645,0.0004,2]
[313946515,1707844320204,-5372.95554902,0.0004,2]
[313946516,1707844320214,-1511.1471129,0.0004,2]
[313946517,1707844320223,-3145.10461686,0.0004,8]
[313946518,1707844320233,-32500.0,0.0004,4]
[313946519,1707844320243,-30000.0,0.0004,14]
[313946520,1707844320253,-3200.0,0.0004,4]
[313946521,1707844320263,-1013.0,0.0004,2]
[313946522,1707844320272,-14497.98650024,0.0004,7]
[313946523,1707844320282,-1415.16526185,0.0004,10]
[313946524,1707844320292,-13911.60374578,0.0004,7]
[313946525,1707844320301,-4860.85936542,0.0004,10]
[313946526,1707844320312,-40369.86968628,0.0004,5]
[313946527,1707844320322,-400.91510333,0.0004,4]
[313946528,1707844320331,-232.88688336,0.0004,4]
[313946529,1707844320342,-2019.63,0.0004,8]
[313946530,1707844320352,-300.0,0.0004,20]
[313946531,1707844320362,-68531.0,0.0004,5]
[313946532,1707844320372,-1000.0,0.0004,9]
[313946533,1707844320382,-2019.0,0.0004,14]
[313946534,1707844320391,-18051.86948877,0.0004,2]
[313946535,1707844320401,-172.32055407,0.0004,4]
[313946536,1707844320410,-11878.73917321,0.0004,10]
[313946537,1707844320419,-6150.0,0.0004,10]
[313946538,1707844320428,-2214.17650154,0.0004,4]
[313946539,1707844320437,-1300.0,0.0004,21]
[313946540,1707844320447,-528.25,0.0004,7]
[313946541,1707844320457,-500.0,0.0004,7]
[313946542,1707844320466,-1003.0,0.0004,9]
[313946543,1707844320476,-800.0,0.0004,7]
[313946544,1707844320485,-1000.0,0.0004,5]
[313946545,1707844320494,-35247.53048055,0.0004,5]
[313946546,1707844320503,-5000.0,0.0004,7]
[313946547,1707844320513,-79714.0,0.0004,3]
[313946548,1707844320522,-9164.0,0.0004,2]
[313946549,1707844320532,-2152.94130136,0.0004,2]
[313946550,1707844320541,-2000.0,0.0004,20]
[313946551,1707844320552,-133236.0,0.0004,7]
[313946552,1707844320561,-883.397029,0.0004,2]
[313946553,1707844320570,-800.0,0.0004,2]
[313946554,1707844320579,-698.79122275,0.0004,3]
[313946555,1707844320589,-1022.82057641,0.0004,6]
[313946556,1707844320598,-506.64076188,0.0004,2]
[313946557,1707844320607,-6415.75493364,0.0004,7]
[313946558,1707844320616,-1985.48,0.0004,17]
[313946559,1707844320625,-500000.0,0.0004,4]
[313946560,1707844320635,-200000.0,0.0004,4]
[313946561,1707844320643,-754.60427648,0.0004,14]
[313946562,1707844320653,-5000.0,0.0004,14]
[313946563,1707844320662,-2000.0,0.0004,5]
[313946564,1707844320671,-447.47,0.0004,7]
[313946565,1707844320681,-4262.25530744,0.0004,20]
[313946566,1707844320692,-2000.0,0.0004,5]
[313946567,1707844320703,-2000.0,0.0004,5]
[313946568,1707844320712,-391.2568003,0.0004,4]
[313946569,1707844320722,-217.7,0.0004,14]
[313946570,1707844320734,-2000.0,0.0004,5]
[313946571,1707844320745,-240.49642197,0.0004,30]
[313946572,1707844320755,-1441.20959872,0.0004,30]
[313946573,1707844320765,-1238.2194712,0.0004,90]
[313946574,1707844320774,-590.03510889,0.0004,30]
[313946575,1707844320785,-326.6273938,0.0004,30]
[313946576,1707844320799,-2409.63351882,0.0004,90]
[313946577,1707844320809,-479.27861116,0.0004,120]
[313946578,1707844320818,-353.38393944,0.0004,30]
[313946579,1707844320828,-1285.16208687,0.0004,30]
[313946580,1707844320848,-300.79073619,0.0004,120]
[313946581,1707844320865,-3216.76148685,0.0004,30]
[313946582,1707844320884,-300.0,0.0004,41]
[313946583,1707844320902,-203.0,0.0004,30]
[313946584,1707844320918,-2216.17117517,0.0004,30]
[313946585,1707844320936,-626.00036138,0.0004,30]
[313946586,1707844320956,-213.0,0.0004,30]
[313946587,1707844320973,-31038.0325764,0.0004,2]
[313946588,1707844320991,-2500.0,0.0004,61]
[313946589,1707844321007,-9329.6432385,0.0004,30]
[313946590,1707844321026,-2373.10077767,0.0004,30]
[313946591,1707844321045,-250.01205722,0.0004,10]
[313946592,1707844321058,-3521.88702135,0.0004,30]
[313946593,1707844321074,-2323.23,0.0004,14]
[313946594,1707844321090,-433.43820794,0.0004,10]
[313946595,1707844321106,-238.39101437,0.0004,10]
[313946596,1707844321121,-1758.37679037,0.0004,30]
[313946597,1707844321137,-252.89503389,0.0004,10]
[313946598,1707844321152,-185.20175191,0.0004,10]
[313946599,1707844321168,-41624.29996412,0.0004,30]
[313946600,1707844321183,-53496.61927548,0.0004,30]
[313946601,1707844321218,-1547.61386485,0.0004,10]
[313946602,1707844321240,-328.41662657,0.0004,10]
[313946603,1707844321260,-6707.03247938,0.0004,30]
[313946604,1707844321279,-2924.24,0.0004,14]
[313946605,1707844321296,-511.05673592,0.0004,10]
[313946606,1707844321314,-255.0,0.0004,12]
[313946607,1707844321330,-255.0,0.0004,12]
[313946608,1707844321345,-6625.54680089,0.0004,7]
[313946609,1707844321362,-20009.2389694,0.0004,120]
[313946610,1707844321376,-2390.15005841,0.0004,30]
[313946611,1707844321391,-255.0,0.0004,12]
[313946612,1707844321406,-292.00396905,0.0004,2]
[313946613,1707844321421,-500.0,0.0004,15]
[313946614,1707844321435,-220.50481721,0.0004,10]
[313946615,1707844321452,-255.0,0.0004,12]
[313946616,1707844321466,-182.61092502,0.0004,10]
[313946617,1707844321481,-238.079729,0.0004,12]
[313946618,1707844321495,-255.0,0.0004,12]
[313946619,1707844321509,-166.0,0.0004,29]
[313946620,1707844321524,-150.0,0.0004,30]
[313946621,1707844321538,-1987.913013,0.0004,12]
[313946622,1707844321553,-7829.34397204,0.0004,30]
[313946623,1707844321566,-255.0,0.0004,12]
[313946624,1707844321580,-450.0,0.0004,14]
[313946625,1707844321594,-502.44435613,0.0004,10]
[313946626,1707844321608,-255.0,0.0004,12]
[313946627,1707844321622,-437.7786878,0.0004,2]
[313946628,1707844321638,-90459.1590496,0.00040002,10]
[313946629,1707844321652,-948.11063744,0.00040005,30]
[313946630,1707844321667,-267.39767407,0.0004002,30]
[313946631,1707844321681,-500.0,0.00040052,2]
[313946632,1707844321695,-170.0,0.00040066,2]
[313946633,1707844321711,-210.0,0.000401,30]
[313946634,1707844321725,-500.0,0.000401,15]
[313946635,1707844321741,-499.77453941,0.00040122,30]
[313946636,1707844321755,-5249.06,0.00040137,7]
[313946637,1707844321770,-5249.06,0.00040137,7]
[313946638,1707844321784,-163.58956918,0.00040164,30]
[313946639,1707844321798,-267.39767407,0.00040166,30]
[313946640,1707844321814,-150.0,0.00040182,7]
[313946641,1707844321830,-150.0,0.00040182,7]
[313946642,1707844321847,-153.0,0.00040188,7]
[313946643,1707844321863,-505.87,0.000402,7]
[313946644,1707844321880,-500.0,0.000402,15]
[313946645,1707844321896,-267.39767407,0.000402,30]
[313946646,1707844321913,-499.77453941,0.00040215,30]
[313946647,1707844321930,-390.67149647,0.00040231,15]
[313946648,1707844321947,-1560.0,0.0004025,17]
[313946649,1707844321969,-156.67920931,0.00040265,30]
[313946650,1707844321986,-500.0,0.00040273,2]
[313946651,1707844322007,-1232.373682,0.00040274,14]
[313946652,1707844322023,-210.0,0.000403,30]
[313946653,1707844322040,-155.0,0.000403,4]
[313946654,1707844322057,-447.47,0.000403,7]
[313946655,1707844322074,-546.324188,0.000403,15]
[313946656,1707844322090,-150.0,0.00040311,3]
[313946657,1707844322111,-500.0,0.00040313,2]
[313946658,1707844322128,-499.77453941,0.00040319,30]
[313946659,1707844322144,-499.77453941,0.0004034,30]
[313946660,1707844322160,-153.10344138,0.00040348,30]
[313946661,1707844322175,-151.85929632,0.00040386,30]
[313946662,1707844322192,-4518.22907092,0.000404,7]
[313946663,1707844322212,-1000.0,0.000404,3]
[313946664,1707844322228,-154.23863763,0.00040409,30]
[313946665,1707844322243,-5249.06,0.0004041,7]
[313946666,1707844322257,-5249.06,0.0004041,7]
[313946667,1707844322272,-163.58956918,0.00040411,30]
[313946668,1707844322287,-153.10344138,0.0004044,30]
[313946669,1707844322302,-210.0,0.000405,30]
[313946670,1707844322316,-1550.0,0.000405,12]
[313946671,1707844322333,-300.0,0.000405,20]
[313946672,1707844322347,-505.87,0.000405,7]
[313946673,1707844322362,-166.0,0.000405,30]
[313946674,1707844322381,-500.0,0.00040547,2]
[313946675,1707844322395,-154.93146774,0.00040547,30]
[313946676,1707844322409,-948.11063744,0.00040565,30]
[313946677,1707844322423,-500.0,0.00040574,2]
[313946678,1707844322623,-555.61,0.00040593,2]
[313946679,1707844322632,-1000.0,0.000406,30]
[313946680,1707844322642,-1000.0,0.000406,30]
[313946681,1707844322651,-163.58956918,0.0004063,30]
[313946682,1707844322660,-152.48330725,0.00040661,30]
[313946683,1707844322669,-150.0,0.00040663,2]
[313946684,1707844322678,-156.95415395,0.00040677,30]
[313946685,1707844322687,-5249.06,0.00040683,7]
[313946686,1707844322697,-5249.06,0.00040683,7]
[313946687,1707844322710,-169.26329822,0.00040686,30]
[313946688,1707844322720,-210.0,0.000407,30]
[313946689,1707844322730,-150.94077731,0.0004072,30]
[313946690,1707844322739,-4345.91994369,0.00040732,5]
[313946691,1707844322749,-1000.0,0.00040733,2]
[313946692,1707844322758,-499.77453941,0.00040753,30]
[313946693,1707844322768,-300.0,0.000408,44]
[313946694,1707844322777,-1000.0,0.000408,43]
[313946695,1707844322787,-1000.0,0.000408,15]
[313946696,1707844322796,-948.11063744,0.00040815,30]
[313946697,1707844322805,-500.0,0.00040821,2]
[313946698,1707844322814,-948.11063744,0.00040822,30]
[313946699,1707844322824,-151.79,0.00040829,2]
[313946700,1707844322833,-500.0,0.00040835,2]
[313946701,1707844322843,-153.10344138,0.00040846,30]
[313946702,1707844322852,-163.58956918,0.00040849,30]
[313946703,1707844322861,-14391.63563176,0.0004088,2]
[313946704,1707844322871,-152.0,0.00040896,6]
[313946705,1707844322880,-210.0,0.000409,30]
[313946706,1707844322889,-1000.0,0.000409,30]
[313946707,1707844322899,-1000.0,0.000409,30]
[313946708,1707844322908,-150.0,0.00040913,7]
[313946709,1707844322917,-150.0,0.00040913,7]
[313946710,1707844322926,-150.0,0.00040937,3]
[313946711,1707844322935,-267.39767407,0.00040952,30]
[313946712,1707844322944,-150.0,0.00040956,120]
[313946713,1707844322957,-5249.06,0.00040956,7]
[313946714,1707844322966,-5249.06,0.00040956,7]
[313946715,1707844322975,-178.62220093,0.00040981,30]
[313946716,1707844322984,-200.0,0.00040987,3]
[313946717,1707844322993,-190.0,0.0004099,2]
[313946718,1707844323002,-50000.0,0.00041,11]
[313946719,1707844323012,-2243.57532488,0.00041,20]
[313946720,1707844323021,-800.0,0.00041,2]
[313946721,1707844323031,-10000.0,0.00041,14]
[313946722,1707844323041,-250.0,0.00041,4]
[313946723,1707844323051,-768.91851773,0.00041,7]
[313946724,1707844323063,-1967.067,0.00041,9]
[313946725,1707844323073,-54622.02079934,0.00041,2]
[313946726,1707844323082,-1600.0,0.00041,7]
[313946727,1707844323096,-2018058.64079122,0.00041,4]
[313946728,1707844323107,-2187.57918611,0.00041,7]
[313946729,1707844323116,-500.0,0.00041,7]
[313946730,1707844323125,-460.33,0.00041,7]
[313946731,1707844323134,-600.0,0.00041,3]
[313946732,1707844323145,-800.0,0.00041,3]
[313946733,1707844323154,-800.0,0.00041,3]
[313946734,1707844323164,-800.0,0.00041,3]
[313946735,1707844323173,-2949.33,0.00041,10]
[313946736,1707844323184,-2257.17,0.00041,7]
[313946737,1707844323193,-1062.28883121,0.00041,5]
[313946738,1707844323203,-1872.0,0.00041,30]
[313946739,1707844323218,-300.0,0.00041,42]
[313946740,1707844323227,-203.0,0.00041,30]
[313946741,1707844323237,-32129.68634972,0.00041,30]
[313946742,1707844323246,-20000.0,0.00041,6]
[313946743,1707844323255,-160.43112086,0.00041,14]
[313946744,1707844323265,-750.0,0.00041,3]
[313946745,1707844323275,-166.0,0.00041,30]
[313946746,1707844323284,-437.7786878,0.00041,2]
[313946747,1707844323294,-150.0,0.00041014,30]
[313946748,1707844323303,-499.77453941,0.00041036,30]
[313946749,1707844323312,-163.58956918,0.00041068,30]
[313946750,1707844323322,-1530.0,0.00041088,7]
[313946751,1707844323331,-948.11063744,0.0004109,30]
[313946752,1707844323341,-294.63531633,0.00041095,2]
[313946753,1707844323351,-581.31685711,0.00041095,120]
[313946754,1707844323364,-613.2,0.00041095,7]
[313946755,1707844323373,-500.0,0.00041095,2]
[313946756,1707844323383,-500.0,0.00041095,30]
[313946757,1707844323392,-506.60251108,0.00041095,30]
[313946758,1707844323401,-500.0,0.00041095,30]
[313946759,1707844323411,-500.0,0.00041095,30]
[313946760,1707844323421,-266.95752979,0.00041095,30]
[313946761,1707844323431,-2500.0,0.00041095,2]
[313946762,1707844323441,-1000.0,0.00041095,2]
[313946763,1707844323450,-222.89490199,0.00041095,2]
[313946764,1707844323465,-1000.0,0.00041095,30]
[313946765,1707844323475,-1000.0,0.00041095,30]
[313946766,1707844323486,-1000.0,0.00041095,30]
[313946767,1707844323497,-1000.0,0.00041095,30]
[313946768,1707844323507,-1000.0,0.00041095,30]
[313946769,1707844323517,-1000.0,0.00041095,30]
[313946770,1707844323527,-1000.0,0.00041095,30]
[313946771,1707844323537,-1000.0,0.00041095,30]
[313946772,1707844323547,-1000.0,0.00041095,30]
[313946773,1707844323556,-900.81021884,0.00041095,30]
[313946774,1707844323566,-1000.0,0.00041095,15]
[313946775,1707844323575,-1000.0,0.00041095,15]
[313946776,1707844323585,-558.13875194,0.00041095,15]
[313946777,1707844323594,-1250.0,0.00041095,2]
[313946778,1707844323604,-500.0,0.00041095,2]
[313946779,1707844323613,-500.0,0.00041095,2]
[313946780,1707844323622,-500.0,0.00041095,2]
[313946781,1707844323632,-500.0,0.00041095,2]
[313946782,1707844323641,-599.70316762,0.00041095,2]
[313946783,1707844323652,-500.0,0.00041095,7]
[313946784,1707844323663,-500.0,0.00041095,7]
[313946785,1707844323673,-500.0,0.00041095,7]
[313946786,1707844323685,-500.0,0.00041095,7]
[313946787,1707844323695,-500.0,0.00041095,7]
[313946788,1707844323707,-280.94200332,0.00041095,7]
[313946789,1707844323716,-1557.61350904,0.00041096,120]
[313946790,1707844323726,-1232.373682,0.00041096,14]
[313946791,1707844323735,-952.40790494,0.00041096,14]
[313946792,1707844323745,-6868.29,0.00041096,2]
[313946793,1707844323755,-500.0,0.00041096,4]
[313946794,1707844323764,-500.0,0.00041096,4]